bitfinex-derivatives/quotes_BTCF0:USTF0_20250318
["timestamp","ask_amount","ask_price","bid_price","bid_amount"]
[1742309744845,0.2230307,81886.0,81885.0,0.1416342]
[1742309745052,0.2230307,81886.0,81885.0,0.0913342]
[1742309745641,0.2230307,81886.0,81885.0,0.0302688]
[1742309745841,0.1221397,81880.0,81879.0,0.00108]
[1742309746135,0.1221397,81880.0,81879.0,0.15361144]
[1742309746136,0.2547397,81880.0,81879.0,0.15361144]
[1742309746351,0.4537397,81880.0,81879.0,0.1221412]
[1742309747153,0.4537397,81880.0,81879.0,0.15360834]
[1742309747653,0.3537397,81880.0,81879.0,0.15360834]
[1742309747947,0.2316,81880.0,81879.0,0.20590834]
[1742309748251,0.099,81880.0,81879.0,0.25440834]
[1742309748448,0.00068,81889.0,81888.0,0.1221277]
[1742309748752,0.01145986,81898.0,81897.0,0.1221143]
[1742309749149,0.1221071,81902.0,81900.0,0.1221098]
[1742309749339,0.0610521,81904.0,81900.0,0.1221098]
[1742309749539,0.061053,81903.0,81900.0,0.1221098]
[1742309750138,0.2326,81901.0,81900.0,0.1221098]
[1742309750651,0.3547083,81901.0,81900.0,0.1221098]
[1742309750848,0.0610554,81900.0,81893.0,0.0610596]
[1742309751047,0.0610684,81882.0,81880.0,0.1221331]
[1742309751352,0.061065,81887.0,81885.0,0.1221307]
[1742309751353,0.0610656,81886.0,81885.0,0.1221307]
[1742309751560,0.1083656,81886.0,81885.0,0.1221307]
[1742309751940,0.0473,81886.0,81885.0,0.1221307]
[1742309752137,0.1694307,81886.0,81885.0,0.1221307]
[1742309752343,0.0473,81886.0,81885.0,0.1731307]
[1742309752848,0.095,81886.0,81885.0,0.2208307]
[1742309753856,0.2171307,81886.0,81885.0,0.2208307]
[1742309754953,0.2171307,81886.0,81885.0,0.5816307]
[1742309756245,0.095,81886.0,81885.0,0.5816307]
[1742309756444,0.0473,81886.0,81885.0,0.5816307]
[1742309757054,0.1718235,81891.0,81890.0,0.1221248]
[1742309757255,0.0497,81891.0,81890.0,0.1221248]
[1742309757560,0.1718233,81891.0,81890.0,0.1699248]
[1742309758046,0.1718233,81891.0,81890.0,0.2197248]
[1742309758356,0.2718233,81891.0,81890.0,0.2197248]
[1742309758557,0.3235233,81891.0,81890.0,0.2197248]
[1742309759043,0.3235233,81891.0,81890.0,0.1719248]
[1742309759250,0.3235233,81891.0,81890.0,0.1221248]
[1742309760052,0.3056233,81891.0,81890.0,0.1221248]
[1742309760252,0.3235233,81891.0,81890.0,0.1221248]
[1742309760661,0.0610632,81889.0,81886.0,0.1221296]
[1742309760849,0.1831954,81887.0,81886.0,0.3053233]
[1742309761163,0.22972,81888.0,81886.0,0.4274525]
[1742309761460,0.2214292,81887.0,81886.0,0.3053229]
[1742309761956,0.3214292,81887.0,81886.0,0.3053229]
[1742309762160,0.3214292,81887.0,81886.0,0.1831937]
[1742309762461,0.2373292,81887.0,81886.0,0.1831937]
[1742309762660,0.2533292,81887.0,81886.0,0.1831937]
[1742309762958,0.2533292,81887.0,81878.0,0.0481]
[1742309762959,0.79262,81887.0,81861.0,0.0610833]
[1742309763161,0.1221829,81851.0,81850.0,0.0495]
[1742309763352,0.1221829,81851.0,81850.0,0.1716844]
[1742309763556,0.1221829,81851.0,81850.0,0.2029846]
[1742309763557,0.2245829,81851.0,81850.0,0.2029846]
[1742309763752,0.2245829,81851.0,81850.0,0.1534846]
[1742309764146,0.13252,81857.0,81850.0,0.1534846]
[1742309764147,0.00018321,81859.0,81852.0,0.1221814]
[1742309764347,0.00018321,81859.0,81858.0,0.1221725]
[1742309764562,0.3608,81872.0,81871.0,0.1221531]
[1742309765065,0.4829547,81872.0,81871.0,0.0610757]
[1742309765458,0.5349547,81872.0,81871.0,0.0610757]
[1742309765656,0.052,81872.0,81871.0,0.0610757]
[1742309765854,0.13252,81879.0,81878.0,0.1221426]
[1742309766262,0.3551612,81879.0,81878.0,0.1731426]
[1742309767365,0.3571612,81879.0,81878.0,0.1731426]
[1742309767662,0.3571612,81879.0,81878.0,0.051]
[1742309767853,0.1832289,81872.0,81871.0,0.1221519]
[1742309768176,0.1992289,81872.0,81871.0,0.1221499]
[1742309768667,0.0989,81874.0,81871.0,0.1221499]
[1742309768668,0.1599744,81874.0,81873.0,0.1221501]
[1742309769064,0.1599744,81874.0,81873.0,0.1715501]
[1742309769257,0.2599744,81874.0,81873.0,0.1715501]
[1742309769767,0.1599744,81874.0,81873.0,0.1715501]
[1742309769962,0.1599744,81874.0,81873.0,0.5323501]
[1742309770161,0.25365655,81888.0,81886.0,0.1221292]
[1742309770360,0.25365655,81888.0,81887.0,0.23439]
[1742309770361,0.1831916,81888.0,81887.0,0.23439]
[1742309770565,0.1831916,81888.0,81887.0,0.38787472]
[1742309770763,0.1831916,81888.0,81887.0,0.03135552]
[1742309770953,0.0610698,81880.0,81878.0,0.1221412]
[1742309771153,0.1832222,81875.0,81874.0,0.1221486]
[1742309771559,0.1832222,81875.0,81874.0,0.15273375]
[1742309772165,0.2332222,81875.0,81874.0,0.15273375]
[1742309772761,0.2342222,81875.0,81874.0,0.15273375]
[1742309773675,0.1221591,81867.0,81866.0,0.00084]
[1742309773876,0.1221635,81864.0,81863.0,0.00018321]
[1742309774374,0.2225635,81864.0,81863.0,0.15356579]
[1742309774582,0.2225635,81864.0,81863.0,0.12234821]
[1742309774875,0.2205635,81864.0,81863.0,0.12234821]
[1742309775077,0.3205635,81864.0,81863.0,0.12234821]
[1742309775464,0.2523635,81864.0,81863.0,0.00018321]
[1742309775666,0.2364635,81864.0,81863.0,0.00218321]
[1742309775962,0.2364635,81864.0,81863.0,0.0339598]
[1742309775963,0.2523635,81864.0,81863.0,0.0339598]
[1742309776161,0.2665635,81864.0,81863.0,0.0339598]
[1742309776668,0.2524635,81864.0,81863.0,0.0359598]
[1742309776966,0.3205635,81864.0,81863.0,0.0359598]
[1742309777165,0.2524635,81864.0,81863.0,0.0359598]
[1742309777582,0.6002635,81864.0,81863.0,0.00218321]
[1742309777876,0.1221904,81846.0,81843.0,0.1221941]
[1742309778063,0.3364304,81846.0,81841.0,0.0517]
[1742309778269,0.3366304,81846.0,81845.0,0.51473122]
[1742309778471,0.4039304,81846.0,81845.0,0.51473122]
[1742309778670,0.4039304,81846.0,81845.0,0.61703122]
[1742309779081,0.4049304,81846.0,81845.0,0.61703122]
[1742309779386,0.28274,81846.0,81845.0,0.61703122]
[1742309779578,0.23274,81846.0,81845.0,0.61703122]
[1742309779773,0.002,81846.0,81845.0,0.61703122]
[1742309779968,0.13244,81851.0,81850.0,0.1221844]
[1742309780371,0.13244,81851.0,81850.0,0.2226844]
[1742309781289,0.13644,81851.0,81850.0,0.2226844]
[1742309782391,0.004,81851.0,81850.0,0.2226844]
[1742309782787,0.002,81851.0,81850.0,0.2226844]
[1742309784386,0.002,81851.0,81850.0,0.2266844]
[1742309784688,0.2705229,81851.0,81850.0,0.004]
[1742309784890,0.3365229,81851.0,81850.0,0.004]
[1742309785079,0.4368229,81851.0,81850.0,0.004]
[1742309785485,0.4476229,81851.0,81850.0,0.005]
[1742309785893,0.4476229,81851.0,81850.0,0.004]
[1742309786092,0.4495229,81851.0,81850.0,0.1261844]
[1742309786793,0.4495229,81851.0,81850.0,0.1231844]
[1742309786794,0.5069229,81851.0,81850.0,0.1231844]
[1742309787095,0.5069229,81851.0,81850.0,0.1722844]
[1742309787281,0.4388229,81851.0,81850.0,0.1722844]
[1742309787477,0.5069229,81851.0,81850.0,0.1722844]
[1742309787682,0.3748229,81851.0,81850.0,0.2205844]
[1742309788184,0.4589229,81851.0,81850.0,0.2205844]
[1742309788782,0.33674,81851.0,81850.0,0.2205844]
[1742309789382,0.4589229,81851.0,81850.0,0.2205844]
[1742309789582,0.3907229,81851.0,81850.0,0.2205844]
[1742309790391,0.4589229,81851.0,81850.0,0.2205844]
[1742309790588,0.004,81851.0,81850.0,0.2205844]
[1742309790791,0.004,81851.0,81850.0,0.2704844]
[1742309791393,0.0507,81861.0,81855.0,0.0610883]
[1742309791595,0.36144,81887.0,81861.0,0.0610838]
[1742309791892,0.3045512,81873.0,81871.0,0.0610765]
[1742309792095,0.2258512,81873.0,81872.0,0.2261516]
[1742309792483,0.3258512,81873.0,81872.0,0.2261516]
[1742309792681,0.2258512,81873.0,81872.0,0.2261516]
[1742309793792,0.2417512,81873.0,81872.0,0.2261516]
[1742309794298,0.2258512,81873.0,81872.0,0.2261516]
[1742309794492,0.2576512,81873.0,81872.0,0.03904221]
[1742309794702,0.1832357,81870.0,81869.0,0.0610769]
[1742309795701,0.2150357,81870.0,81869.0,0.10020452]
[1742309796203,0.2160357,81870.0,81869.0,0.10020452]
[1742309796698,0.2842357,81870.0,81869.0,0.10020452]
[1742309796904,0.6268357,81870.0,81869.0,0.03912762]
[1742309797106,0.122162,81865.0,81863.0,0.1221647]
[1742309797406,0.153962,81865.0,81864.0,0.12234671]
[1742309797604,0.307362,81865.0,81864.0,0.12234671]
[1742309797906,0.425562,81865.0,81864.0,0.03937294]
[1742309798209,0.425562,81865.0,81864.0,0.00018321]
[1742309798405,0.325562,81865.0,81864.0,0.00018321]
[1742309798708,0.1221829,81851.0,81850.0,0.4829844]
[1742309799098,0.2232829,81851.0,81850.0,0.4829844]
[1742309799296,0.1832804,81849.0,81848.0,0.122187]
[1742309799605,0.1221979,81841.0,81840.0,0.48318261]
[1742309799904,0.1221964,81842.0,81841.0,0.1832953]
[1742309800202,0.1221964,81842.0,81841.0,0.2895953]
[1742309800410,0.1721964,81842.0,81841.0,0.2895953]
[1742309800597,0.1721964,81842.0,81841.0,0.32785333]
[1742309800794,0.2214964,81842.0,81841.0,0.32785333]
[1742309801693,0.10550429,81891.0,81856.0,0.1221755]
[1742309801694,0.06541278,81857.0,81856.0,0.1221755]
[1742309801895,0.122174,81857.0,81856.0,0.122174]
[1742309802090,0.225274,81857.0,81856.0,0.122174]
[1742309802299,0.225274,81857.0,81856.0,0.172974]
[1742309802997,0.225274,81857.0,81856.0,0.122174]
[1742309803190,0.1221785,81854.0,81853.0,0.2340663]
[1742309803392,0.3608,81854.0,81830.0,0.47555747]
[1742309803597,0.1832916,81844.0,81843.0,0.1221939]
[1742309804392,0.2867916,81844.0,81843.0,0.1221939]
[1742309805308,0.2867916,81844.0,81843.0,0.1715939]
[1742309806210,0.2877916,81844.0,81843.0,0.1715939]
[1742309806810,0.2887916,81844.0,81843.0,0.1715939]
[1742309807399,0.2887916,81844.0,81842.0,0.0610982]
[1742309807400,0.1221949,81843.0,81841.0,0.03798468]
[1742309807708,0.1221949,81843.0,81841.0,0.1221975]
[1742309807709,0.2239964,81842.0,81841.0,0.1221975]
[1742309808107,0.2239964,81842.0,81841.0,0.21346957]
[1742309808304,0.004,81844.0,81843.0,0.1221949]
[1742309808511,0.0610786,81871.0,81870.0,0.1221546]
[1742309808711,0.3363731,81871.0,81870.0,0.1755546]
[1742309808901,0.3363731,81871.0,81870.0,0.2287546]
[1742309810113,0.18332,81871.0,81870.0,0.26690999]
[1742309810411,0.051,81871.0,81870.0,0.26690999]
[1742309810608,0.22492,81871.0,81870.0,0.26690999]
[1742309810808,0.4054731,81871.0,81870.0,0.26690999]
[1742309811006,0.3382731,81871.0,81870.0,0.26690999]
[1742309811205,0.3415731,81871.0,81870.0,0.26690999]
[1742309811407,0.3734731,81871.0,81870.0,0.26690999]
[1742309811615,0.4255731,81871.0,81870.0,0.26690999]
[1742309811913,0.3894731,81871.0,81870.0,0.26690999]
[1742309812210,0.051,81871.0,81870.0,0.26690999]
[1742309812409,0.001,81871.0,81870.0,0.26690999]
[1742309812616,0.0492,81889.0,81870.0,0.26690999]
[1742309812617,0.13228,81884.0,81883.0,0.1221352]
[1742309812804,0.1742288,81888.0,81887.0,0.1221292]
[1742309813009,0.3065088,81888.0,81887.0,0.1221292]
[1742309813706,0.3560088,81888.0,81887.0,0.1221292]
[1742309814103,0.23388,81888.0,81887.0,0.1221292]
[1742309814307,0.3560077,81888.0,81887.0,0.1221292]
[1742309814512,0.3570077,81888.0,81887.0,0.1221292]
[1742309814715,0.0505,81888.0,81887.0,0.1221292]
[1742309814918,0.001,81888.0,81887.0,0.1221292]
[1742309816905,0.13228,81889.0,81888.0,0.1221277]
[1742309817111,0.1221233,81891.0,81890.0,0.1221248]
[1742309817311,0.1221233,81891.0,81888.0,0.4829277]
[1742309817312,0.1831596,81906.0,81888.0,0.3608]
[1742309817515,0.1221069,81904.0,81903.0,0.1831543]
[1742309817716,0.2221069,81904.0,81903.0,0.1831543]
[1742309817915,0.3210069,81904.0,81903.0,0.1831543]
[1742309818315,0.2369069,81904.0,81903.0,0.0610519]
[1742309818623,0.1221069,81902.0,81901.0,0.4829076]
[1742309818918,0.2221069,81902.0,81901.0,0.4829076]
[1742309819108,0.1645069,81902.0,81901.0,0.4829076]
[1742309819418,0.01,81902.0,81901.0,0.4829076]
[1742309819616,0.0425,81902.0,81901.0,0.4829076]
[1742309819819,0.1335069,81902.0,81901.0,0.4829076]
[1742309820519,0.1335069,81902.0,81901.0,0.52268708]
[1742309820903,0.1539069,81902.0,81901.0,0.52268708]
[1742309821110,0.2221069,81902.0,81901.0,0.52268708]
[1742309821309,0.2231069,81902.0,81901.0,0.52268708]
[1742309821718,0.1469069,81902.0,81901.0,0.03977948]
[1742309822022,0.1221143,81898.0,81897.0,0.0610571]
[1742309822209,0.1221143,81898.0,81897.0,0.1831654]
[1742309822412,0.1221143,81897.0,81896.0,0.3608]
[1742309822615,0.2543143,81897.0,81896.0,0.4829158]
[1742309822836,0.4001143,81897.0,81896.0,0.52265647]
[1742309823218,0.4542143,81897.0,81896.0,0.52265647]
[1742309823416,0.3861143,81897.0,81896.0,0.52265647]
[1742309823620,0.3860143,81897.0,81896.0,0.52265647]
[1742309824015,0.1221158,81896.0,81895.0,0.00018321]
[1742309824207,0.1221546,81870.0,81869.0,0.3608]
[1742309824413,0.2543546,81870.0,81869.0,0.3608]
[1742309824723,0.3043546,81870.0,81869.0,0.52186617]
[1742309825021,0.1322,81870.0,81869.0,0.52186617]
[1742309825418,0.2543546,81870.0,81869.0,0.52186617]
[1742309826325,0.3040546,81870.0,81869.0,0.52186617]
[1742309826524,0.3572546,81870.0,81869.0,0.52186617]
[1742309826914,0.3572546,81870.0,81869.0,0.39971007]
[1742309827126,0.4072546,81870.0,81869.0,0.39971007]
[1742309827710,0.1221665,81862.0,81861.0,0.00018321]
[1742309827914,0.18216,81862.0,81861.0,0.48315121]
[1742309828216,0.2543265,81862.0,81861.0,0.48315121]
[1742309828424,0.2543265,81862.0,81861.0,0.5211038]
[1742309828727,0.2543265,81862.0,81861.0,0.0381358]
[1742309828929,0.4105265,81862.0,81861.0,0.0381358]
[1742309829111,0.8031265,81862.0,81861.0,0.0381358]
[1742309829317,0.1221785,81854.0,81853.0,0.3608]
[1742309829622,0.3361385,81854.0,81853.0,0.3608]
[1742309829822,0.4095385,81854.0,81853.0,0.48298]
[1742309830223,0.4413385,81854.0,81853.0,0.52227542]
[1742309830529,0.5095385,81854.0,81853.0,0.52227542]
[1742309830727,0.4519385,81854.0,81853.0,0.52427542]
[1742309830922,0.1221785,81854.0,81853.0,0.52427542]
[1742309831117,0.1539785,81854.0,81853.0,0.52427542]
[1742309831320,0.2221785,81854.0,81853.0,0.52627542]
[1742309831830,0.4059385,81854.0,81853.0,0.40409542]
[1742309832028,0.3907385,81854.0,81853.0,0.40409542]
[1742309832214,0.4589385,81854.0,81853.0,0.40409542]
[1742309832526,0.4589385,81854.0,81853.0,0.04329542]
[1742309832527,0.5089385,81854.0,81853.0,0.04329542]
[1742309832727,0.4407385,81854.0,81853.0,0.04329542]
[1742309833132,0.5589385,81854.0,81853.0,0.04129542]
[1742309833322,0.4407385,81854.0,81853.0,0.04129542]
[1742309833514,0.5089385,81854.0,81853.0,0.04129542]
[1742309834416,0.1221904,81846.0,81845.0,0.00018321]
[1742309834620,0.3361504,81846.0,81845.0,0.00018321]
[1742309834817,0.4406504,81846.0,81845.0,0.00018321]
[1742309835028,0.4406504,81846.0,81845.0,0.03921472]
[1742309835226,0.5088504,81846.0,81845.0,0.03921472]
[1742309835435,0.7855504,81846.0,81845.0,0.03921472]
[1742309835728,0.7855504,81846.0,81845.0,0.00231076]
[1742309835933,0.1221979,81841.0,81840.0,0.1221987]
[1742309836134,0.1880979,81841.0,81840.0,0.2221987]
[1742309836337,0.1880979,81841.0,81840.0,0.1]
[1742309836839,0.2925979,81841.0,81840.0,0.1]
[1742309837036,0.3190979,81841.0,81840.0,0.26172793]
[1742309837427,0.3766979,81841.0,81840.0,0.26172793]
[1742309837622,0.3190979,81841.0,81840.0,0.26172793]
[1742309838230,0.3200979,81841.0,81840.0,0.26172793]
[1742309838430,0.051,81841.0,81840.0,0.62252793]
[1742309838635,0.13216,81853.0,81852.0,0.1221814]
[1742309838830,0.23216,81853.0,81852.0,0.2229814]
[1742309839031,0.35434,81853.0,81852.0,0.2229814]
[1742309839628,0.13216,81853.0,81852.0,0.2229814]
[1742309839940,0.13316,81853.0,81852.0,0.2229814]
[1742309840437,0.17556,81853.0,81852.0,0.2229814]
[1742309841541,0.0424,81853.0,81852.0,0.2229814]
[1742309841735,0.13234321,81854.0,81853.0,0.12218]
[1742309841931,0.13234321,81854.0,81853.0,0.22578]
[1742309842137,0.00018321,81854.0,81853.0,0.22578]
[1742309843326,0.26303292,81879.0,81870.0,0.1221546]
[1742309843532,0.33212,81871.0,81870.0,0.1221546]
[1742309843842,0.2595552,81871.0,81870.0,0.1754546]
[1742309844033,0.3916752,81871.0,81870.0,0.1754546]
[1742309844234,0.4936752,81871.0,81870.0,0.1754546]
[1742309845643,0.4936752,81871.0,81870.0,0.10130399]
[1742309845940,0.4221752,81871.0,81870.0,0.10130399]
[1742309846140,0.4221752,81871.0,81870.0,0.04800399]
[1742309846339,0.4221752,81871.0,81860.0,0.3608]
[1742309846340,0.122165,81863.0,81860.0,0.3608]
[1742309846643,0.1832693,81854.0,81853.0,0.122179]
[1742309846840,0.4077893,81854.0,81853.0,0.122179]
[1742309847045,0.18212,81854.0,81853.0,0.122179]
[1742309847231,0.1932026,81863.0,81861.0,0.122168]
[1742309847434,0.1932026,81863.0,81862.0,0.0511]
[1742309847635,0.2356026,81863.0,81862.0,0.4119]
[1742309847934,0.3577676,81863.0,81862.0,0.5340665]
[1742309848134,0.4153676,81863.0,81862.0,0.5880665]
[1742309849534,0.4153676,81863.0,81862.0,0.4659]
[1742309849741,0.4653676,81863.0,81862.0,0.4119]
[1742309849943,0.3812676,81863.0,81862.0,0.3608]
[1742309850446,0.4653676,81863.0,81862.0,0.3608]
[1742309850844,0.4653676,81863.0,81862.0,0.4829665]
[1742309851147,0.17448,81863.0,81862.0,0.4829665]
[1742309851338,0.13208,81863.0,81862.0,0.4829665]
[1742309851644,0.13208,81863.0,81862.0,0.5885665]
[1742309851940,0.1221621,81865.0,81864.0,0.1221635]
[1742309852143,0.2542391,81867.0,81866.0,0.1221606]
[1742309852748,0.2542391,81867.0,81866.0,0.2248606]
[1742309854845,0.0610849,81860.0,81845.0,0.3608]
[1742309855047,0.1221755,81856.0,81855.0,0.0496]
[1742309855344,0.1221755,81856.0,81855.0,0.222877]
[1742309855556,0.2313755,81856.0,81855.0,0.222877]
[1742309855751,0.2313755,81856.0,81855.0,0.1007]
[1742309856042,0.172177,81855.0,81852.0,0.0489796]
[1742309856438,0.282677,81855.0,81852.0,0.0489796]
[1742309856634,0.232677,81855.0,81852.0,0.0489796]
[1742309856841,0.282677,81855.0,81852.0,0.0489796]
[1742309857245,0.28649937,81855.0,81852.0,0.0489796]
[1742309857445,0.1221889,81847.0,81846.0,0.1066]
[1742309857638,0.3042289,81847.0,81846.0,0.03779691]
[1742309857850,0.5647289,81847.0,81846.0,0.03779691]
[1742309858145,0.1221904,81846.0,81845.0,0.3608]
[1742309858554,0.3283904,81846.0,81845.0,0.3608]
[1742309858750,0.3788904,81846.0,81845.0,0.3608]
[1742309859052,0.3212904,81846.0,81845.0,0.3608]
[1742309859255,0.3788904,81846.0,81845.0,0.40970436]
[1742309861350,0.3788904,81846.0,81845.0,0.04890436]
[1742309861554,0.1881009,81839.0,81838.0,0.0542]
[1742309861745,0.4042409,81839.0,81838.0,0.0542]
[1742309862244,0.0611084,81829.0,81824.0,0.37065018]
[1742309862442,0.3333304,81826.0,81825.0,0.1018]
[1742309862850,0.4398304,81826.0,81825.0,0.1018]
[1742309863847,0.4398304,81826.0,81825.0,0.1038]
[1742309864249,0.3557304,81826.0,81825.0,0.04942949]
[1742309864461,0.4898304,81826.0,81825.0,0.04942949]
[1742309864761,0.4898304,81826.0,81825.0,0.05042949]
[1742309865061,0.4322304,81826.0,81825.0,0.05042949]
[1742309865252,0.3822304,81826.0,81825.0,0.17265129]
[1742309865661,0.3822304,81826.0,81825.0,0.27785129]
[1742309865662,0.2600101,81826.0,81825.0,0.27785129]
[1742309865952,0.05,81826.0,81825.0,0.27785129]
[1742309866158,0.13204,81828.0,81827.0,0.1222188]
[1742309866354,0.13204,81828.0,81827.0,0.2274188]
[1742309866750,0.00018321,81834.0,81833.0,0.1222098]
[1742309866954,0.0610983,81842.0,81839.0,0.1832975]
[1742309866955,0.3332992,81840.0,81839.0,0.1832975]
[1742309867158,0.3812392,81840.0,81839.0,0.1832975]
[1742309867353,0.4653392,81840.0,81839.0,0.5440975]
[1742309867553,0.5170392,81840.0,81839.0,0.5440975]
[1742309867949,0.3948398,81840.0,81839.0,0.5440975]
[1742309868161,0.3372398,81840.0,81839.0,0.5440975]
[1742309868359,0.052,81840.0,81839.0,0.5440975]
[1742309868655,0.002,81840.0,81839.0,0.5440975]
[1742309869249,0.002,81840.0,81839.0,0.5955975]
[1742309870049,0.002,81840.0,81839.0,0.4733996]
[1742309870050,0.1241994,81840.0,81839.0,0.4733996]
[1742309870363,0.1241994,81840.0,81839.0,0.1737009]
[1742309870364,0.1741994,81840.0,81839.0,0.1737009]
[1742309870661,0.2776994,81840.0,81839.0,0.1737009]
[1742309870862,0.2776994,81840.0,81839.0,0.2282009]
[1742309873663,0.2776994,81840.0,81839.0,0.106]
[1742309874559,0.3773994,81840.0,81839.0,0.2282009]
[1742309875446,0.3776994,81840.0,81839.0,0.2282009]
[1742309875957,0.5096994,81840.0,81839.0,0.2282009]
[1742309876162,0.4520994,81840.0,81839.0,0.2282009]
[1742309877161,0.5096994,81840.0,81839.0,0.106]
[1742309877462,0.4255994,81840.0,81839.0,0.0545]
[1742309877665,0.5096994,81840.0,81839.0,0.0545]
[1742309877862,0.4520994,81840.0,81839.0,0.0545]
[1742309878065,0.4520994,81840.0,81839.0,0.1056]
[1742309878758,0.4520994,81840.0,81839.0,0.2278009]
[1742309879353,0.2165994,81840.0,81839.0,0.2278009]
[1742309879551,0.052,81840.0,81839.0,0.2278009]
[1742309879860,0.04258321,81848.0,81847.0,0.1221889]
[1742309880063,0.00018321,81848.0,81847.0,0.4829889]
[1742309880260,0.22237061,81848.0,81847.0,0.6441889]
[1742309880461,0.12237061,81848.0,81847.0,0.6441889]
[1742309880658,0.45853061,81848.0,81847.0,0.4664]
[1742309880856,0.45853061,81848.0,81839.0,0.00018321]
[1742309880857,0.1221994,81840.0,81839.0,0.00018321]
[1742309881051,0.1221994,81840.0,81839.0,0.10578321]
[1742309882157,0.2221994,81840.0,81839.0,0.10578321]
[1742309882363,0.2733994,81840.0,81839.0,0.22798411]
[1742309882760,0.4583594,81840.0,81839.0,0.22798411]
[1742309883063,0.3477594,81840.0,81839.0,0.22798411]
[1742309883370,0.0610952,81846.0,81839.0,0.22798411]
[1742309883371,0.00018321,81848.0,81847.0,0.1221889]
[1742309883559,0.1221831,81856.0,81855.0,0.2443402]
[1742309883759,0.1256831,81856.0,81855.0,0.6051402]
[1742309884269,0.1256831,81856.0,81855.0,0.4829724]
[1742309884457,0.1256831,81856.0,81855.0,0.4218872]
[1742309884658,0.2319831,81856.0,81855.0,0.53635192]
[1742309884963,0.2747831,81856.0,81855.0,0.58597733]
[1742309885164,0.1757831,81856.0,81855.0,0.58597733]
[1742309885365,0.2747831,81856.0,81855.0,0.58597733]
[1742309885569,0.2747831,81856.0,81855.0,0.46380633]
[1742309885763,0.3284831,81856.0,81855.0,0.41042541]
[1742309885958,0.3284831,81856.0,81855.0,0.04962541]
[1742309886156,0.1832693,81854.0,81853.0,0.1221795]
[1742309886369,0.12218,81853.0,81852.0,0.052]
[1742309886570,0.22908,81853.0,81852.0,0.052]
[1742309886768,0.1221874,81848.0,81847.0,0.4147]
[1742309886959,0.1221874,81848.0,81847.0,0.5883889]
[1742309886960,0.2221874,81848.0,81847.0,0.5883889]
[1742309887269,0.3290874,81848.0,81847.0,0.63726668]
[1742309887965,0.3290874,81848.0,81847.0,0.40967778]
[1742309888165,0.3790874,81848.0,81847.0,0.40967778]
[1742309888368,0.3790874,81848.0,81847.0,0.04887778]
[1742309888570,0.3790874,81848.0,81847.0,0.3608]
[1742309888865,0.1221919,81845.0,81844.0,0.4123]
[1742309889069,0.1221994,81840.0,81839.0,0.00018321]
[1742309889373,0.1222307,81819.0,81818.0,0.4830322]
[1742309889557,0.2222307,81819.0,81818.0,0.3608]
[1742309889765,0.1222382,81814.0,81813.0,0.0562]
[1742309889958,0.1881382,81814.0,81813.0,0.0562]
[1742309890165,0.3251382,81814.0,81813.0,0.0562]
[1742309890376,0.3251382,81814.0,81810.0,0.0538]
[1742309890377,0.1222427,81811.0,81810.0,0.0538]
[1742309890556,0.1722427,81811.0,81810.0,0.0538]
[1742309890761,0.2251427,81811.0,81810.0,0.0538]
[1742309890962,0.2759427,81811.0,81810.0,0.22503021]
[1742309891163,0.2709427,81811.0,81810.0,0.22503021]
[1742309891678,0.2709427,81811.0,81810.0,0.10778601]
[1742309891977,0.2709427,81811.0,81810.0,0.23003021]
[1742309892370,0.2709427,81811.0,81810.0,0.10778601]
[1742309893170,0.2709427,81811.0,81810.0,0.10878601]
[1742309893371,0.2709427,81811.0,81810.0,0.05498601]
[1742309893771,0.3709427,81811.0,81810.0,0.17723021]
[1742309893976,0.3709427,81811.0,81810.0,0.53803021]
[1742309894562,0.0424,81811.0,81810.0,0.17423021]
[1742309894873,0.1726427,81811.0,81810.0,0.17123021]
[1742309895172,0.2284427,81811.0,81810.0,0.22653021]
[1742309895763,0.1062,81811.0,81810.0,0.22653021]
[1742309896476,0.2284427,81811.0,81810.0,0.22653021]
[1742309897577,0.1062,81811.0,81810.0,0.22653021]
[1742309897963,0.008,81811.0,81810.0,0.22653021]
[1742309898164,0.008,81811.0,81810.0,0.58733021]
[1742309898373,0.00018333,81822.0,81820.0,0.0611146]
[1742309898582,0.00018333,81822.0,81810.0,0.59700601]
[1742309898583,0.1615194,81827.0,81826.0,0.1222188]
[1742309898879,0.2615194,81827.0,81826.0,0.1222188]
[1742309899377,0.1615194,81827.0,81826.0,0.1222188]
[1742309899684,0.0513,81827.0,81826.0,0.1222188]
[1742309900368,0.1745188,81827.0,81826.0,0.1222188]
[1742309901275,0.1755188,81827.0,81826.0,0.1222188]
[1742309901670,0.2755188,81827.0,81826.0,0.1222188]
[1742309901864,0.1755188,81827.0,81826.0,0.1222188]
[1742309902070,0.1755188,81827.0,81826.0,0.1745188]
[1742309902272,0.0533,81827.0,81826.0,0.1745188]
[1742309902475,0.001,81827.0,81826.0,0.1755188]
[1742309902681,0.00018333,81835.0,81834.0,0.1222083]
[1742309902868,0.00018333,81835.0,81834.0,0.5353083]
[1742309903070,0.00018333,81835.0,81834.0,0.5908083]
[1742309903269,0.10018333,81835.0,81834.0,0.5908083]
[1742309903469,0.00018333,81835.0,81834.0,0.5908083]
[1742309903681,0.10018333,81835.0,81834.0,0.5908083]
[1742309904074,0.22239013,81835.0,81834.0,0.5908083]
[1742309904379,0.15419013,81835.0,81834.0,0.0523]
[1742309904573,0.26079013,81835.0,81834.0,0.0523]
[1742309904884,0.33089013,81835.0,81834.0,0.1745083]
[1742309906282,0.33089013,81835.0,81834.0,0.0523]
[1742309906283,0.31269013,81835.0,81834.0,0.0523]
[1742309906580,0.38089013,81835.0,81834.0,0.1745083]
[1742309906887,0.1222098,81833.0,81832.0,0.3608]
[1742309907076,0.2540498,81833.0,81832.0,0.3608]
[1742309907271,0.4029498,81833.0,81832.0,0.3608]
[1742309907479,0.3718498,81833.0,81832.0,0.3608]
[1742309907673,0.4059498,81833.0,81832.0,0.3608]
[1742309907869,0.3222498,81833.0,81832.0,0.4830113]
[1742309908283,0.3242498,81833.0,81832.0,0.5368113]
[1742309908583,0.4079498,81833.0,81832.0,0.5368113]
[1742309908783,0.4617498,81833.0,81832.0,0.5368113]
[1742309909180,0.4637498,81833.0,81832.0,0.5368113]
[1742309910789,0.3637498,81833.0,81832.0,0.5368113]
[1742309911286,0.4637498,81833.0,81832.0,0.5368113]
[1742309911786,0.4637498,81833.0,81826.0,0.06129323]
[1742309911787,0.1222188,81827.0,81826.0,0.00018333]
[1742309911974,0.2722188,81827.0,81826.0,0.00018333]
[1742309912283,0.3816188,81827.0,81826.0,0.00018333]
[1742309912591,0.2816188,81827.0,81826.0,0.00018333]
[1742309912990,0.2816188,81827.0,81826.0,0.12240363]
[1742309913378,0.2826188,81827.0,81826.0,0.05358386]
[1742309913786,0.2826188,81827.0,81826.0,0.16048386]
[1742309915092,0.2846188,81827.0,81826.0,0.16048386]
[1742309915499,0.2836188,81827.0,81826.0,0.16048386]